bitfinex/quotes_SOLUSD_20240808
["timestamp","ask_amount","ask_price","bid_price","bid_amount"]
[1723103937791,34.8864,153.93,153.86,16.2482]
[1723103938213,6.4968,153.92,153.88,6.4984]
[1723103938389,6.4968,153.92,153.87,6.4989]
[1723103940988,29.68349714,153.91,153.86,16.2482]
[1723103941209,28.39,153.91,153.86,16.2482]
[1723103941403,28.39,153.91,153.82,6.0]
[1723103941615,6.4977,153.9,153.85,6.4994]
[1723103941805,34.8873,153.91,153.86,6.4993]
[1723103942115,28.39,153.91,153.87,6.4989]
[1723103942294,28.39,153.91,153.82,6.0]
[1723103942494,28.39,153.91,153.87,6.4989]
[1723103943707,28.39,153.91,153.88,6.4984]
[1723103944009,28.39,153.93,153.9,6.4976]
[1723103944214,9.36178533,153.96,153.87,16.2466]
[1723103944215,28.39,153.95,153.87,16.2466]
[1723103944393,6.4969,153.92,153.87,22.7454]
[1723103945616,34.8865,153.93,153.88,6.4984]
[1723103945819,34.8865,153.93,153.87,16.2466]
[1723103945820,28.39,153.93,153.89,6.4977]
[1723103945999,34.8865,153.93,153.88,6.4984]
[1723103946309,6.4969,153.92,153.87,16.2466]
[1723103946514,6.4969,153.92,153.87,22.7452]
[1723103946706,34.8865,153.93,153.88,6.4984]
[1723103947296,28.39,153.93,153.89,6.498]
[1723103947496,28.39,153.93,153.9,6.4977]
[1723103947702,28.39,153.93,153.89,6.498]
[1723103949391,34.8865,153.93,153.88,6.4984]
[1723103949592,6.4973,153.91,153.87,16.2466]
[1723103950011,6.4977,153.9,153.85,6.4994]
[1723103950327,28.39,153.91,153.87,6.4989]
[1723103950492,28.39,153.91,153.88,6.4985]
[1723103950700,28.39,153.93,153.9,6.4975]
[1723103950898,28.39,153.93,153.89,6.498]
[1723103951094,34.8864,153.93,153.89,6.498]
[1723103951399,28.39,153.93,153.88,16.2457]
[1723103952006,28.39,153.93,153.82,6.0]
[1723103952204,6.4985,153.89,153.85,16.2492]
[1723103952920,6.4977,153.9,153.85,16.2492]
[1723103953104,28.39,153.91,153.85,16.2492]
[1723103953301,28.39,153.89,153.82,22.2526]
[1723103953499,1.29349714,153.93,153.84,16.2498]
[1723103953829,11.01819186,153.95,153.83,28.56]
[1723103954023,60.63917247,153.97,153.92,6.4965]
[1723103954329,6.4955,153.96,153.91,6.4972]
[1723103954622,6.4955,153.96,153.9,16.2436]
[1723103954623,44.8163,153.97,153.9,16.2436]
[1723103954922,6.4959,153.95,153.9,22.7412]
[1723103955722,6.4951,153.96,153.91,6.4972]
[1723103955922,34.8848,153.97,153.92,6.4968]
[1723103956129,34.8848,153.97,153.92,6.4967]
[1723103956813,34.8848,153.97,153.92,6.4968]
[1723103957203,6.4952,153.96,153.91,6.4972]
[1723103957402,28.39,153.97,153.9,16.2436]
[1723103957620,28.39,153.97,153.91,0.17]
[1723103958710,28.39,153.97,153.9,16.2436]
[1723103958913,6.4955,153.96,153.91,6.4972]
[1723103959427,47.83008937,154.0,153.92,0.17]
[1723103959731,10.90900382,154.0,153.97,6.4946]
[1723103959908,10.90900382,154.0,153.96,16.2369]
[1723103959909,28.39,153.98,153.92,16.2413]
[1723103960109,6.4953,153.96,153.92,16.2413]
[1723103960521,6.4953,153.96,153.92,22.7381]
[1723103960822,6.4948,153.97,153.92,22.7381]
[1723103961207,28.39,153.96,153.92,22.7381]
[1723103961714,28.39,153.96,153.93,6.4964]
[1723103961915,28.39,153.96,153.92,16.2413]
[1723103962121,34.8853,153.96,153.92,16.2413]
[1723103962720,34.8853,153.96,153.89,22.5097]
[1723103962721,28.39,153.96,153.89,22.5097]
[1723103962923,16.3744,153.99,153.89,22.5097]
[1723103962924,28.39,153.94,153.89,22.5097]
[1723103963135,28.39,153.94,153.87,6.4985]
[1723103963429,6.4973,153.91,153.86,16.2482]
[1723103963616,34.8868,153.92,153.86,16.2482]
[1723103963809,28.39,153.92,153.87,6.4986]
[1723103964001,28.39,153.92,153.86,16.2482]
[1723103964202,34.886,153.94,153.89,6.4977]
[1723103964405,28.39,153.96,153.86,1.29750685]
[1723103964823,28.39,153.96,153.87,0.17]
[1723103965004,28.39,153.96,153.87,1.46731219]
[1723103965533,28.39,153.96,153.88,0.17]
[1723103965715,28.39,153.96,153.88,1.46742627]
[1723103966041,28.39,153.96,153.92,6.4968]
[1723103967129,28.39,153.98,153.91,16.583]
[1723103967312,6.4953,153.96,153.91,22.7401]
[1723103968027,34.8838,154.0,153.95,6.4952]
[1723103968733,6.4957,153.95,153.9,6.4975]
[1723103969098,28.39,153.96,153.89,22.7426]
[1723103969304,28.39,153.96,153.89,16.2446]
[1723103969501,28.39,153.94,153.89,16.2446]
[1723103969733,28.39,153.94,153.9,6.4977]
[1723103970031,6.4966,153.93,153.89,16.2446]
[1723103970407,34.886,153.94,153.89,22.7427]
[1723103970602,6.4964,153.93,153.89,22.7427]
[1723103970802,6.4964,153.93,153.89,16.2446]
[1723103971025,28.39,153.94,153.88,6.4984]
[1723103971207,28.39,153.92,153.88,6.4984]
[1723103971528,28.39,153.92,153.89,6.4981]
[1723103972230,28.39,153.92,153.85,6.3626]
[1723103972231,28.39,153.94,153.9,6.4973]
[1723103973563,6.4956,153.95,153.9,22.7411]
[1723103973733,50.9782,153.96,153.91,6.4972]
[1723103973929,50.9782,153.96,153.9,16.2435]
[1723103973930,34.8852,153.96,153.92,6.4968]
[1723103974234,30.98281566,153.98,153.9,16.2435]
[1723103974413,34.8846,153.98,153.93,6.4964]
[1723103974615,28.39,153.98,153.94,6.496]
[1723103974841,34.8843,153.98,153.93,6.4963]
[1723103975031,34.8843,153.98,153.92,16.2414]
[1723103975032,28.39,153.98,153.92,16.2414]
[1723103975422,34.8847,153.98,153.92,22.7379]
[1723103975818,34.8847,153.98,153.92,16.2414]
[1723103976219,34.8847,153.98,153.93,6.4963]
[1723103976436,28.39,153.98,153.94,6.4959]
[1723103977312,34.8843,153.98,153.93,6.4963]
[1723103978040,28.39,153.98,153.94,6.4958]
[1723103978231,44.0574,154.0,153.96,6.4951]
[1723103978415,50.5509,154.0,153.95,6.4955]
[1723103978615,28.39,154.0,153.96,6.495]
[1723103978817,43.41408555,154.02,153.96,6.495]
[1723103979037,6.4931,154.01,153.96,6.495]
[1723103980543,6.4935,154.0,153.95,6.4955]
[1723103981541,28.39,154.0,153.94,16.2392]
[1723103982219,6.4945,153.98,153.94,16.2392]
[1723103982428,6.4945,153.98,153.93,6.4964]
[1723103982429,28.39,153.98,153.93,6.4964]
[1723103982630,34.8852,153.96,153.91,45.6127]
[1723103982833,6.4956,153.95,153.91,16.2431]
[1723103983034,28.39,153.96,153.91,16.2431]
[1723103983331,28.39,153.96,153.92,6.4965]
[1723103984054,28.39,153.96,153.91,22.7403]
[1723103984055,34.8852,153.96,153.91,22.7403]
[1723103985235,28.39,153.96,153.88,16.2462]
[1723103985538,34.886,153.94,153.89,6.4981]
[1723103986543,28.39,153.94,153.9,6.4976]
[1723103986849,28.39,153.94,153.91,6.4972]
[1723103987747,28.39,153.94,153.92,6.4966]
[1723103987939,28.39,153.96,153.92,6.4966]
[1723103989144,28.39,153.96,153.9,22.7408]
[1723103989534,28.39,153.94,153.9,16.2435]
[1723103991125,34.886,153.94,153.9,16.2435]
[1723103992638,28.39,153.92,153.82,21.6161]
[1723103992857,6.4973,153.91,153.86,6.499]
[1723103993045,28.39,153.9,153.87,6.4989]
[1723103993247,28.39,153.9,153.88,6.4984]
[1723103993433,28.39,153.92,153.88,6.4984]
[1723103994450,28.39,153.92,153.88,6.4982]
[1723103994629,34.8869,153.92,153.87,6.4989]
[1723103995027,34.887,153.92,153.86,16.2476]
[1723103995235,28.39,153.92,153.86,16.2476]
[1723103996735,28.39,153.94,153.86,16.2476]
[1723103996933,28.39,153.94,153.87,0.17]
[1723103997137,28.39,153.94,153.86,1.29935882]
[1723103997351,28.39,153.94,153.87,0.34]
[1723103997929,28.39,153.96,153.88,15.5989]
[1723103998138,28.39,153.98,153.94,6.496]
[1723103998534,28.39,153.98,153.95,6.4956]
[1723103998732,28.39,154.0,153.96,6.4951]
[1723103999564,34.8827,154.02,153.97,6.4947]
[1723104000257,385.1,154.03,153.97,16.236]
[1723104000463,385.1,154.03,153.99,6.4937]
[1723104001533,385.1,154.03,153.98,6.4942]
[1723104002130,6.4914,154.05,153.97,16.236]
[1723104002441,6.4919,154.04,153.99,6.4938]
[1723104002643,6.4922,154.03,153.98,6.4943]
[1723104002962,48.56591914,154.08,154.02,6.4926]
[1723104003262,42.07581914,154.08,154.02,16.2306]
[1723104003583,6.4915,154.05,153.99,6.6635]
[1723104003738,28.39,154.06,154.0,6.4931]
[1723104003940,34.8813,154.06,154.0,6.4931]
[1723104004163,34.8818,154.04,153.98,22.7288]
[1723104004334,28.39,154.02,153.98,22.7288]
[1723104004731,28.39,154.02,153.98,16.2348]
[1723104005144,28.39,154.02,153.96,6.3218]
[1723104005342,28.39,154.02,153.97,6.4944]
[1723104005543,28.39,154.02,153.98,6.4943]
[1723104006062,28.39,154.02,153.99,6.4937]
[1723104006447,28.39,154.04,154.0,6.4935]
[1723104006836,6.4915,154.05,153.96,6.3218]
[1723104007058,6.4915,154.05,154.0,16.2328]
[1723104007472,28.39,154.04,154.0,16.2328]
[1723104007979,28.39,154.04,154.0,22.7262]
[1723104008175,28.39,154.04,154.0,16.2328]
[1723104008472,28.39,154.06,154.02,6.4926]
[1723104008638,16.20962939,154.08,154.03,16.2302]
[1723104008639,42.07581914,154.08,154.03,16.2302]
[1723104009350,28.39,154.06,153.99,16.2338]
[1723104009666,28.39,154.06,154.03,6.4922]
[1723104010048,28.39,154.06,153.98,0.17]
[1723104010238,6.4917,154.05,154.0,6.4933]
[1723104010574,34.8827,154.02,153.97,6.4947]
[1723104010876,28.39,154.02,153.99,6.4938]
[1723104011238,28.39,154.02,154.0,6.4934]
[1723104011441,48.8562261,154.08,154.01,6.4929]
[1723104011442,28.39,154.04,154.01,6.4929]
[1723104011751,6.4911,154.06,154.01,6.4929]
[1723104011958,6.4914,154.05,154.0,6.4934]
[1723104012255,21.46951628,154.08,154.01,16.2317]
[1723104012466,6.4905,154.07,154.02,0.17]
[1723104012637,6.4905,154.07,154.02,6.6623]
[1723104013040,13.68581914,154.08,154.03,16.2297]
[1723104013369,13.68581914,154.08,154.04,6.4914]
[1723104013544,13.68581914,154.08,154.03,16.2297]
[1723104013734,20.17621914,154.08,154.03,22.7219]
[1723104013934,6.491,154.06,154.0,6.4931]
[1723104014150,6.4926,154.03,153.99,6.0538]
[1723104014393,1.29349714,154.05,153.96,16.2377]
[1723104014671,36.5,154.06,154.0,6.4932]
[1723104015363,6.4914,154.05,154.0,6.4932]
[1723104015565,20.17591914,154.08,154.02,16.2313]
[1723104015776,20.17591914,154.08,154.03,6.4918]
[1723104016455,20.17591914,154.08,154.02,16.2313]
[1723104016456,13.68581914,154.08,154.04,16.3987]
[1723104016644,13.68581914,154.08,154.05,6.4913]
[1723104016965,13.68581914,154.08,154.04,22.8904]
[1723104017969,13.68581914,154.08,154.07,6.4905]
[1723104018279,13.68581914,154.08,154.04,0.17]
[1723104018463,13.68581914,154.08,154.03,0.34]
[1723104020173,13.68581914,154.08,154.07,6.4905]
[1723104020386,13.26847312,154.14,154.09,6.4895]
[1723104020546,16.6062,154.15,154.1,6.4888]
[1723104021079,15.13822171,154.16,154.11,0.17]
[1723104021254,385.1,154.17,154.1,0.17]
[1723104021443,385.1,154.18,154.11,15.3969]
[1723104021647,391.5863,154.18,154.12,6.4884]
[1723104021871,391.5863,154.18,154.1,0.17]
[1723104021872,385.1,154.18,154.1,0.17]
[1723104022169,385.1,154.18,154.05,16.2275]
[1723104022170,21.6784,154.14,154.05,16.2275]
[1723104022346,36.5,154.12,154.0,6.4931]
[1723104022543,6.4906,154.07,154.01,6.4929]
[1723104022866,6.4914,154.05,153.99,21.4219]
[1723104023066,52.7243,154.09,153.99,21.4219]
[1723104023067,6.4909,154.07,154.01,6.493]
[1723104023259,6.4911,154.06,154.01,6.493]
[1723104023567,6.4909,154.07,154.01,6.493]
[1723104023772,6.4909,154.07,153.95,22.3967]
[1723104023773,52.3998,154.06,153.95,22.3967]
[1723104024068,6.4926,154.03,153.97,6.4947]
[1723104024279,36.5,154.03,153.91,6.5127]
[1723104024575,6.4946,153.98,153.92,6.4966]
[1723104024767,6.4946,153.98,153.93,6.4963]
[1723104025071,6.4939,153.99,153.93,6.4963]
[1723104025776,42.9935,154.0,153.94,6.4959]
[1723104026351,6.494,153.99,153.93,6.4964]
[1723104026562,36.5,154.03,153.94,16.2394]
[1723104026751,15.95681575,154.05,153.94,16.2394]
[1723104026953,14.8207239,154.02,153.94,16.2394]
[1723104027373,14.8207239,154.02,153.97,6.4946]
[1723104029168,14.8207239,154.02,154.0,6.4934]
[1723104030877,14.8207239,154.02,154.01,6.493]
[1723104031072,6.4905,154.08,154.02,6.4926]
[1723104031452,6.4907,154.07,154.02,6.4926]
[1723104031675,15.3966,154.1,154.03,6.492]
[1723104031848,6.4897,154.09,154.04,6.4917]
[1723104032458,6.4892,154.1,154.04,6.4917]
[1723104032859,6.4897,154.09,154.04,6.4917]
[1723104033381,15.34548393,154.13,154.06,16.2274]
[1723104033607,21.83378393,154.13,154.07,6.6605]
[1723104033883,15.34548393,154.13,154.07,0.17]
[1723104034566,6.4884,154.12,154.07,0.17]
[1723104036108,15.34548393,154.13,154.03,16.2305]
[1723104036254,6.4898,154.09,154.03,22.7227]
[1723104036579,6.4893,154.1,154.03,16.2305]
[1723104037083,36.5,154.12,154.06,6.4909]
[1723104037275,42.9885,154.12,154.07,6.4905]
[1723104037494,15.34548393,154.13,154.07,6.4905]
[1723104037797,6.4888,154.11,154.06,6.4909]
[1723104038091,22.4053,154.11,154.01,16.1733]
[1723104038758,6.4906,154.07,154.01,22.6663]
[1723104038961,6.4901,154.08,154.02,6.4923]
[1723104039380,6.4901,154.08,154.03,6.4921]
[1723104039966,6.4918,154.04,153.98,6.28]
[1723104040484,6.4922,154.03,153.98,12.7742]
[1723104041278,6.4926,154.02,153.97,22.9957]
[1723104041488,6.4926,154.02,153.97,6.4946]
[1723104041664,6.4922,154.03,153.98,6.4943]
[1723104041864,36.5,154.06,153.99,6.4937]
[1723104041865,6.4917,154.05,153.99,6.4937]
[1723104042167,6.4917,154.05,154.0,6.4933]
[1723104042887,15.19801477,154.08,153.97,1.29858655]
[1723104043079,36.5,154.12,154.01,16.1383]
[1723104043391,22.4053,154.11,154.01,16.1383]
[1723104044070,22.4053,154.11,153.95,17.2665858]
[1723104044071,16.2249,154.09,153.95,17.2665858]
[1723104044277,36.5,154.08,154.0,6.4934]
[1723104044587,6.491,154.06,154.0,6.4934]
[1723104044788,6.491,154.06,154.01,6.4929]
[1723104044992,6.4916,154.05,153.99,22.7282]
[1723104045296,6.4921,154.04,153.99,22.7282]
[1723104045510,6.4921,154.04,153.99,16.2347]
[1723104046601,6.4924,154.03,153.99,16.2347]
[1723104046790,6.4917,154.05,153.99,22.7284]
[1723104047299,6.4919,154.04,153.99,22.7284]
[1723104047487,6.4914,154.05,154.0,6.4934]
[1723104047795,45.89161084,154.08,153.99,16.2347]
[1723104047997,6.77910922,154.08,154.01,16.2317]
[1723104048298,58.9053,154.11,154.03,16.2297]
[1723104048676,6.49,154.09,154.03,22.7215]
[1723104049291,6.49,154.09,154.04,6.4918]
[1723104049880,6.4901,154.08,154.03,22.7219]
[1723104050998,6.4897,154.09,154.03,22.7219]
[1723104051196,1.29349714,154.1,154.02,16.2459]
[1723104051397,6.4911,154.06,154.01,6.493]
[1723104051703,6.491,154.06,154.01,6.493]
[1723104051880,6.4906,154.07,154.02,6.4926]
[1723104052768,1.29349714,154.1,153.98,15.9887]
[1723104053074,6.491,154.06,153.98,15.9887]
[1723104053273,66.97316306,154.11,154.02,6.4926]
[1723104053274,6.4906,154.07,154.02,6.4926]
[1723104054598,6.491,154.06,154.01,16.2316]
[1723104054986,17.51759714,154.1,153.98,32.2244]
[1723104055179,36.5,154.08,153.98,32.2244]
[1723104055374,1.29349714,154.07,153.99,6.4935]
[1723104055578,6.4918,154.04,153.99,6.4935]
[1723104055773,1.29349714,154.07,153.98,15.9887]
[1723104055994,32.0549,154.04,153.94,15.734]
[1723104056197,6.4922,154.03,153.98,6.4943]
[1723104056407,6.4923,154.03,153.98,22.73]
[1723104056931,6.4927,154.02,153.98,16.2357]
[1723104057076,15.8246,154.04,153.98,22.73]
[1723104057275,6.4928,154.02,153.98,16.2357]
[1723104057475,15.8246,154.04,153.98,16.2357]
[1723104057878,6.4919,154.04,153.99,6.4938]
[1723104058097,385.1,154.07,153.98,16.2357]
[1723104058290,6.4912,154.06,154.01,6.4927]
[1723104058694,6.4912,154.06,154.0,6.4934]
[1723104059085,6.4915,154.05,154.0,6.4934]
[1723104059384,6.491,154.06,154.0,6.4934]
[1723104059594,6.491,154.06,154.01,6.4928]
[1723104059800,6.4915,154.05,153.99,6.8335]
[1723104059984,6.4918,154.04,153.99,6.8335]
[1723104060425,6.4918,154.04,153.99,6.6635]
[1723104060582,6.4918,154.04,153.99,6.4935]
[1723104061180,1.29349714,154.06,153.94,15.734]
[1723104061384,6.493,154.02,153.94,31.973]
[1723104061607,6.4935,154.0,153.94,31.973]
[1723104061904,6.4931,154.01,153.95,6.4955]
[1723104062103,6.4927,154.02,153.96,6.4947]
[1723104062596,6.4927,154.02,153.97,6.4947]
[1723104063191,6.4934,154.01,153.95,6.4955]
[1723104063396,1.29349714,154.01,153.94,31.973]
[1723104063599,36.5,153.99,153.9,6.4976]
[1723104063914,36.5,153.99,153.89,29.26234131]
[1723104063915,6.4965,153.93,153.89,22.4821]
[1723104064113,6.496,153.95,153.89,28.9801]
[1723104064311,22.8304,153.93,153.81,16.2529]
[1723104064612,29.3269,153.93,153.86,6.4993]
[1723104064920,6.4972,153.92,153.84,16.25]
[1723104065112,16.379,153.96,153.81,1.29970473]
[1723104065296,6.4956,153.95,153.81,1.29936681]
[1723104065614,6.495,153.97,153.82,21.4397]
[1723104065800,6.495,153.97,153.83,1.29937605]
[1723104066004,6.4952,153.96,153.83,1.29937605]
[1723104066192,1.29349714,153.95,153.87,16.2468]
[1723104066396,2.51650812,153.99,153.9,16.2438]
[1723104066603,6.4943,153.99,153.93,6.4964]
[1723104066917,42.9933,154.01,153.93,16.2403]
[1723104067090,36.5,154.01,153.9,6.581]
[1723104067287,36.5,153.98,153.89,16.6233]
[1723104067494,6.494,153.99,153.9,0.17]
[1723104067734,9.08226379,154.02,153.96,6.4949]
[1723104068037,2.58946379,154.02,153.9,16.5837]
[1723104068318,1.29349714,154.03,153.9,16.4137]
[1723104068319,37.79349714,154.01,153.9,16.4137]
[1723104068528,37.79349714,154.01,153.9,22.9114]
[1723104068899,36.5,154.01,153.9,16.4137]
[1723104069311,37.79349714,154.01,153.9,16.4137]
[1723104069504,36.5,154.01,153.9,16.4137]
[1723104069705,37.79349714,154.01,153.9,16.4137]
[1723104070112,36.5,154.01,153.91,0.17]
[1723104070325,37.79349714,154.01,153.91,0.17]
[1723104070504,37.79349714,154.01,153.9,22.9111]
[1723104070821,6.4975,153.91,153.85,38.2064]
[1723104071142,6.4968,153.92,153.86,12.8791]
[1723104071300,6.4968,153.92,153.86,6.3798]
[1723104071502,6.4964,153.94,153.87,6.4988]
[1723104071804,6.4942,153.99,153.86,6.3798]
[1723104072012,36.5,154.01,153.92,6.4964]
[1723104072219,6.4944,153.98,153.92,6.4964]
[1723104072398,6.4949,153.97,153.91,16.2426]
[1723104072906,37.79349714,154.01,153.92,6.4968]
[1723104073214,40.31759092,154.01,153.91,16.2426]
[1723104073418,6.4948,153.97,153.91,16.2426]
[1723104073616,40.31759092,154.01,153.92,6.4968]
[1723104073617,6.4943,153.99,153.92,6.4968]
[1723104073825,6.4934,154.01,153.94,6.496]
[1723104073996,6.4934,154.01,153.92,15.855]
[1723104073997,6.4934,154.01,153.95,6.4955]
[1723104074193,6.4936,154.0,153.94,6.4959]
[1723104074419,1.29349714,153.99,153.93,6.5821]
[1723104074625,6.4937,154.0,153.94,6.4959]
[1723104074829,2.63138951,154.03,153.95,6.4955]
[1723104075011,2.63138951,154.03,153.93,6.5821]
[1723104075197,36.5,154.08,153.96,16.2377]
[1723104075403,1.29349714,154.07,153.96,16.2377]
[1723104076610,0.17,154.06,153.96,16.2377]
[1723104077010,6.4922,154.03,153.97,6.4943]
[1723104078023,36.5,154.05,153.96,16.2377]
[1723104078230,53.81823224,154.08,153.97,0.17]
[1723104078419,52.5247351,154.08,153.97,0.17]
[1723104078727,20.0,154.07,153.97,0.17]
[1723104078933,6.4919,154.04,153.99,6.4938]
[1723104079223,6.4919,154.04,153.97,6.6645]
[1723104079431,6.4919,154.04,153.98,6.4943]
[1723104080819,6.4905,154.07,153.99,16.4046]
[1723104081022,6.4905,154.07,154.01,6.493]
[1723104081724,6.4901,154.08,154.02,6.4926]
[1723104081911,13.27363031,154.09,154.03,6.4921]
[1723104082112,6.4893,154.1,154.04,6.4917]
[1723104082309,6.489,154.11,154.05,6.4912]
[1723104082503,6.489,154.11,154.03,0.17]
[1723104082504,394.38096764,154.13,154.04,0.17]
[1723104082834,52.19368178,154.16,154.04,0.17]
[1723104083033,52.19368178,154.16,154.03,0.34]
[1723104083198,52.19368178,154.16,154.06,6.4905]
[1723104083199,6.4884,154.12,154.06,6.4905]
[1723104083404,1.29349714,154.15,154.05,16.2283]
[1723104083641,6.4902,154.08,154.01,6.608]
[1723104083936,6.4893,154.1,154.02,0.34]
[1723104084232,414.74248706,154.14,154.02,0.34]
[1723104084420,37.96349714,154.13,154.02,0.17]
[1723104084812,6.492,154.04,154.01,6.608]
[1723104085323,6.4914,154.05,154.01,6.608]
[1723104085527,6.4919,154.04,154.0,16.2591]
[1723104085702,42.9555,154.1,153.97,12.8558]
[1723104085703,6.4924,154.03,153.97,12.8558]
[1723104086228,1.29349714,154.02,153.97,6.3611]
[1723104086419,36.5,154.04,153.93,12.6092]
[1723104086420,6.4939,153.99,153.93,12.6092]
[1723104086616,1.29349714,153.98,153.93,6.1132]
[1723104086922,6.4948,153.97,153.93,6.1132]
[1723104087237,36.5,154.04,153.95,16.2388]
[1723104087533,36.5,154.07,153.93,7.41201542]
[1723104087534,385.1,154.05,153.93,7.41201542]
[1723104087717,68.02232827,154.1,153.93,7.41201542]
[1723104087918,68.02232827,154.1,153.94,0.17]
[1723104088131,6.4897,154.09,154.02,6.4922]
[1723104088317,6.4897,154.09,153.94,0.34]
[1723104088318,6.4897,154.09,154.03,6.492]
[1723104088810,39.30512541,154.1,154.04,6.4917]
[1723104089021,38.01162827,154.1,154.05,6.4913]
[1723104089225,31.52232827,154.1,154.04,16.2294]
[1723104089443,391.5884,154.12,154.07,6.4904]
[1723104089608,6.4884,154.12,154.07,6.4904]
[1723104089956,6.68951262,154.14,154.08,6.4898]
[1723104090231,36.5,154.16,154.08,6.4898]
[1723104090410,6.488,154.13,154.07,16.2257]
[1723104090611,6.488,154.13,154.07,22.7158]
[1723104091539,36.5,154.16,154.07,22.7158]
[1723104091740,6.488,154.13,154.07,16.2257]
[1723104091913,6.4887,154.12,154.07,16.2257]
[1723104092412,6.4887,154.12,154.07,22.7161]
[1723104092629,6.488,154.13,154.08,6.4901]
[1723104092837,6.4885,154.12,154.07,22.7162]
[1723104093041,6.4885,154.12,154.07,16.2257]
[1723104093343,6.4891,154.11,154.05,6.6613]
[1723104093691,6.505,154.3,154.12,21.6801]
[1723104093864,13.5859636,154.38,154.12,21.6801]
[1723104093865,26.75604276,154.99,154.9,20.0]
[1723104094149,26.75604276,154.99,154.8,19.52]
[1723104094150,26.75604276,154.99,154.98,73.0]
[1723104094151,3.35e-05,154.99,154.98,73.0]
[1723104094320,69.8784,155.17,154.78,20.0]
[1723104094321,36.5,155.19,154.9,87.9690431]
[1723104094514,20.0,155.15,154.81,0.17]
[1723104094719,38.26812277,155.26,154.81,0.17]
[1723104094720,0.86831845,155.22,154.82,149.65607516]
[1723104094937,20.0,155.02,154.84,16.1448]
[1723104095143,20.0,155.08,154.86,32.93691831]
[1723104095459,20.0,155.08,154.59,20.0]
[1723104095460,20.0,154.95,154.88,32.36354035]
[1723104095745,20.0,155.05,154.84,32.78392839]
[1723104095923,20.0,155.05,154.83,71.8719329]
[1723104095924,44.13,154.95,154.86,32.73886083]
[1723104096125,44.13,154.91,154.84,32.91050703]
[1723104096316,44.13,154.87,154.83,44.0534329]
[1723104096516,44.13,154.87,154.83,36.92350583]
[1723104096741,19.44436371,154.85,154.74,6.4622]
[1723104097037,44.13,154.95,154.74,6.4624]
[1723104097038,12.9620143,154.75,154.74,6.4624]
[1723104097243,2.99840713,154.75,154.74,6.4624]
[1723104097467,2.99840713,154.75,154.72,16.0226]
[1723104097468,8.99105253,154.75,154.72,16.0226]
[1723104097665,3.22543488,154.8,154.73,6.4626]
[1723104097844,3.22543488,154.79,154.73,6.4626]
[1723104098042,3.22543488,154.78,154.73,6.4626]
[1723104098361,3.22543488,154.76,154.71,1.0102897]
[1723104098564,0.17,154.77,154.71,1.0102897]
[1723104098565,3.22543488,154.73,154.71,1.0102897]
[1723104098751,0.17,154.75,154.71,1.0102897]
[1723104098752,2.99881019,154.72,154.71,1.0102897]
[1723104098941,2.99881019,154.74,154.71,1.0102897]
[1723104099141,9.46161019,154.73,154.71,1.0102897]
[1723104099356,68.33881019,154.72,154.71,1.0102897]
[1723104099542,80.90054974,154.72,154.71,1.0102897]
[1723104099835,68.16881019,154.72,154.71,1.0102897]
[1723104100042,68.33881019,154.72,154.71,1.0102897]
[1723104100756,68.33881019,154.72,154.71,0.3837897]
[1723104101135,100.72507287,154.72,154.71,8.97e-05]